fUST/lending_fUST_20260414
["ID","MTS","AMOUNT","RATE_DAILY","PERIOD"]
[420505055,1776179441912,-500.0,0.00010958,2]
[420505057,1776179441922,-563.4,0.00010958,2]
[420505059,1776179441935,-500.0,0.00010958,2]
[420505061,1776179441952,-500.0,0.00010958,2]
[420505064,1776179441962,-511.18,0.00010958,2]
[420505065,1776179441977,-500.0,0.00010958,2]
[420505067,1776179441989,-500.0,0.00010958,2]
[420505069,1776179441999,-500.0,0.00010958,2]
[420505071,1776179442009,-500.0,0.00010958,2]
[420505074,1776179442029,-500.0,0.00010958,2]
[420505075,1776179442043,-500.0,0.00010958,2]
[420505077,1776179442053,-500.0,0.00010958,2]
[420505079,1776179442066,-500.0,0.00010958,2]
[420505081,1776179442081,-500.0,0.00010958,2]
[420505083,1776179442091,-500.0,0.00010958,2]
[420505085,1776179442100,-500.0,0.00010958,2]
[420505087,1776179442115,-500.0,0.00010958,2]
[420505089,1776179442128,-500.0,0.00010958,2]
[420505091,1776179442138,-500.0,0.00010958,2]
[420505093,1776179442153,-500.0,0.00010958,2]
[420505096,1776179442174,-500.0,0.00010958,2]
[420505097,1776179442184,-500.0,0.00010958,2]
[420505100,1776179442195,-500.0,0.00010958,2]
[420505102,1776179442215,-500.0,0.00010958,2]
[420505104,1776179442231,-500.0,0.00010958,2]
[420505105,1776179442242,-500.0,0.00010958,2]
[420505107,1776179442255,-500.0,0.00010958,2]
[420505109,1776179442270,-500.0,0.00010958,2]
[420505111,1776179442280,-500.0,0.00010958,2]
[420505113,1776179442295,-500.0,0.00010958,2]
[420505116,1776179442314,-500.0,0.00010958,2]
[420505118,1776179442323,-508.84839959,0.00010958,2]
[420505120,1776179442344,-500.0,0.00010958,2]
[420505122,1776179442355,-1000.0,0.00010958,2]
[420505124,1776179442371,-500.0,0.00010958,2]
[420505126,1776179442398,-500.0,0.00010958,2]
[420505128,1776179442410,-500.0,0.00010958,2]
[420505129,1776179442419,-500.0,0.00010958,2]
[420505131,1776179442444,-500.0,0.00010958,2]
[420505133,1776179442455,-500.0,0.00010958,2]
[420505135,1776179442465,-500.0,0.00010958,2]
[420505137,1776179442495,-500.0,0.00010958,2]
[420505139,1776179442507,-500.0,0.00010958,2]
[420505141,1776179442517,-764.99,0.00010958,2]
[420505143,1776179442538,-500.0,0.00010958,2]
[420505145,1776179442551,-500.0,0.00010958,2]
[420505147,1776179442573,-500.0,0.00010958,2]
[420505149,1776179442588,-500.0,0.00010958,2]
[420505151,1776179442597,-500.0,0.00010958,2]
[420505153,1776179442623,-9753.8,0.00010958,2]
[420505155,1776179442634,-500.0,0.00010958,2]
[420505157,1776179442651,-500.0,0.00010958,2]
[420505159,1776179442669,-500.0,0.00010958,2]
[420505161,1776179442682,-10085.94,0.00010958,2]
[420505163,1776179442695,-500.0,0.00010958,2]
[420505165,1776179442729,-500.0,0.00010958,2]
[420505168,1776179442747,-500.0,0.00010958,2]
[420505169,1776179442773,-500.0,0.00010958,2]
[420505171,1776179442782,-500.0,0.00010958,2]
[420505173,1776179442796,-500.0,0.00010958,2]
[420505175,1776179442820,-500.0,0.00010958,2]
[420505176,1776179442829,-500.0,0.00010958,2]
[420505178,1776179442847,-500.0,0.00010958,2]
[420505181,1776179442878,-500.0,0.00010958,2]
[420505184,1776179442891,-500.0,0.00010958,2]
[420505198,1776179443113,-615.19,0.00010958,2]
[420505200,1776179443123,-500.0,0.00010958,2]
[420505202,1776179443137,-278.39625567,0.00010958,2]
[420505205,1776179443152,-500.0,0.00010958,2]
[420505208,1776179443169,-500.0,0.00010958,2]
[420505210,1776179443179,-500.0,0.00010958,2]
[420505211,1776179443189,-216.33511177,0.00010958,2]
[420505212,1776179443198,-500.0,0.00010958,2]
[420505213,1776179443214,-580.29,0.00010958,2]
[420505214,1776179443225,-500.0,0.00010958,2]
[420505215,1776179443236,-7016.98,0.00010958,2]
[420505216,1776179443245,-500.0,0.00010958,2]
[420505217,1776179443263,-500.0,0.00010958,2]
[420505218,1776179443274,-500.0,0.00010958,2]
[420505219,1776179443285,-7599.2,0.00010958,2]
[420505220,1776179443302,-500.0,0.00010958,2]
[420505221,1776179443317,-500.0,0.00010958,2]
[420505222,1776179443332,-500.0,0.00010958,2]
[420505223,1776179443343,-500.0,0.00010958,2]
[420505224,1776179443357,-500.0,0.00010958,2]
[420505225,1776179443371,-500.0,0.00010958,2]
[420505226,1776179443402,-500.0,0.00010958,2]
[420505227,1776179443416,-500.0,0.00010958,2]
[420505228,1776179443443,-8795.6,0.00010958,2]
[420505229,1776179443457,-500.0,0.00010958,2]
[420505230,1776179443485,-500.0,0.00010958,2]
[420505231,1776179443502,-500.0,0.00010958,2]
[420505232,1776179443521,-500.0,0.00010958,2]
[420505233,1776179443544,-586.05,0.00010958,2]
[420505234,1776179443554,-500.0,0.00010958,2]
[420505235,1776179443563,-547.63,0.00010958,2]
[420505236,1776179443577,-500.0,0.00010958,2]
[420505237,1776179443587,-500.0,0.00010958,2]
[420505238,1776179443597,-500.0,0.00010958,2]
[420505239,1776179443608,-30590.69,0.00010958,2]
[420505240,1776179443627,-6548.51,0.00010958,2]
[420505241,1776179443637,-500.0,0.00010958,2]
[420505242,1776179443649,-997.86,0.00010958,2]
[420505243,1776179443664,-8779.51753419,0.00010958,2]
[420505244,1776179443977,-2750.88246581,0.00010958,2]
[420505245,1776179443987,-500.0,0.00010958,2]
[420505246,1776179444001,-500.0,0.00010958,2]
[420505247,1776179444034,-500.0,0.00010958,2]
[420505248,1776179444043,-1161.64659486,0.00010958,2]
[420505249,1776179444059,-8245.44568079,0.00010958,2]
[420505250,1776179444077,-6113.76772435,0.00010958,2]
[420505251,1776179444087,-500.0,0.00010958,2]
[420505252,1776179444099,-268.61184875,0.00010958,2]
[420505253,1776179444127,-1711.26889342,0.00010958,2]
[420505255,1776179444170,-20489.58110658,0.00010958,2]
[420505256,1776179444181,-545.2,0.00010958,2]
[420505257,1776179444202,-500.0,0.00010958,2]
[420505258,1776179444217,-15695.9,0.00010958,2]
[420505259,1776179444230,-500.0,0.00010958,2]
[420505260,1776179444260,-500.0,0.00010958,2]
[420505261,1776179444271,-500.0,0.00010958,2]
[420505262,1776179444282,-500.0,0.00010958,2]
[420505263,1776179444309,-500.0,0.00010958,2]
[420505264,1776179444319,-500.0,0.00010958,2]
[420505265,1776179444329,-500.0,0.00010958,2]
[420505266,1776179444352,-500.0,0.00010958,2]
[420505267,1776179444361,-500.0,0.00010958,2]
[420505268,1776179444373,-284.93224338,0.00010958,2]
[420505269,1776179444396,-10863.91,0.00010958,2]
[420505270,1776179444408,-500.0,0.00010958,2]
[420505271,1776179444421,-9230.13,0.00010958,2]
[420505272,1776179444440,-191.86560353,0.00010958,2]
[420505273,1776179444454,-5089.42,0.00010958,2]
[420505274,1776179444469,-500.0,0.00010958,2]
[420505275,1776179444486,-500.0,0.00010958,2]
[420505276,1776179444499,-500.0,0.00010958,2]
[420505277,1776179444515,-500.0,0.00010958,2]
[420505278,1776179444526,-500.0,0.00010958,2]
[420505279,1776179444537,-500.0,0.00010958,2]
[420505280,1776179444552,-500.0,0.00010958,2]
[420505281,1776179444566,-726.61,0.00010958,2]
[420505282,1776179444577,-500.0,0.00010958,2]
[420505283,1776179444589,-11810.9748594,0.00010959,2]
[420505284,1776179444608,-500.0,0.00010959,2]
[420505285,1776179444617,-500.0,0.00010959,2]
[420505286,1776179444628,-500.0,0.00010959,2]
[420505287,1776179444649,-500.0,0.00010959,2]
[420505288,1776179444659,-500.0,0.00010959,2]
[420505289,1776179444669,-500.0,0.00010959,2]
[420505290,1776179444687,-167.50041151,0.00010959,2]
[420505291,1776179444697,-502.62934024,0.00010973,2]
[420505292,1776179444707,-503.2850445,0.00010973,2]
[420505293,1776179444718,-500.0,0.00010973,2]
[420505294,1776179444735,-500.0,0.00010973,2]
[420505295,1776179444744,-500.0,0.00010973,2]
[420505296,1776179444753,-500.0,0.00010973,2]
[420505297,1776179444769,-553.96417201,0.00010973,2]
[420505298,1776179444780,-500.0,0.00010973,2]
[420505299,1776179444790,-536.85540735,0.00010973,2]
[420505300,1776179444802,-501.25981471,0.00010973,2]
[420505301,1776179444824,-500.0,0.00010973,2]
[420505302,1776179444834,-271.72794897,0.00010973,2]
[420505303,1776179444847,-166.90241121,0.00010973,2]
[420505304,1776179444858,-500.0,0.00010973,2]
[420505305,1776179444872,-500.0,0.00010973,2]
[420505306,1776179444883,-362.08351723,0.00010973,2]
[420505307,1776179444892,-500.0,0.00010973,2]
[420505308,1776179444906,-213.00451458,0.00010973,2]
[420505309,1776179444927,-500.0,0.00010973,2]
[420505310,1776179444937,-169.36432804,0.00010973,2]
[420505311,1776179444946,-500.0,0.00010973,2]
[420505312,1776179444966,-500.0,0.00010973,2]
[420505313,1776179444976,-500.0,0.00010973,2]
[420505314,1776179444986,-505.650827,0.00010973,2]
[420505315,1776179445002,-500.0,0.00010973,2]
[420505316,1776179445028,-500.31642613,0.00010973,2]
[420505317,1776179445038,-500.82983759,0.00010973,2]
[420505318,1776179445056,-500.0,0.00010973,2]
[420505319,1776179445070,-160.89762022,0.00010973,2]
[420505320,1776179445081,-531.25770436,0.00010973,2]
[420505321,1776179445101,-500.0,0.00010973,2]
[420505322,1776179445125,-500.0,0.00010973,2]
[420505323,1776179445137,-531.29308016,0.00010973,2]
[420505324,1776179445160,-646.97396847,0.00010973,2]
[420505325,1776179445171,-500.0,0.00010973,2]
[420505326,1776179445183,-864.0,0.00010983,2]
[420505327,1776179445207,-332.06281759,0.00010989,2]
[420505328,1776179445218,-176.86,0.00011,2]
[420505329,1776179445229,-194.0,0.00011,2]
[420505330,1776179445248,-269.4,0.00011,2]
[420505331,1776179445258,-151.0,0.00011,2]
[420505332,1776179445283,-151.0,0.000111,2]
[420505333,1776179445294,-151.0,0.000111,2]
[420505334,1776179445311,-151.0,0.000111,2]
[420505335,1776179445348,-162.380719,0.00011103,2]
[420505336,1776179445363,-537.6845,0.00011103,2]
[420505337,1776179445417,-478.75725327,0.00011103,2]
[420505338,1776179445428,-1100.0178,0.00011103,2]
[420505339,1776179445468,-537.6845,0.00011103,2]
[420505340,1776179445479,-2150.738,0.00011103,2]
[420505341,1776179445497,-557.5788265,0.00011158,2]
[420505342,1776179445510,-236.267503,0.00011167,2]
[420505343,1776179445520,-5980.47046039,0.00011191,2]
[420505344,1776179445535,-5000.0,0.00011191,2]
[420505345,1776179445552,-5000.0,0.00011191,2]
[420505346,1776179445562,-5000.0,0.00011191,2]
[420505347,1776179445572,-5000.0,0.00011191,2]
[420505348,1776179445582,-151.0,0.000112,2]
[420505349,1776179445594,-151.0,0.000112,2]
[420505350,1776179445603,-151.0,0.000112,2]
[420505351,1776179445614,-151.0,0.000112,2]
[420505352,1776179445623,-578.20924308,0.00011213,2]
[420505353,1776179445634,-159.32,0.00011232,2]
[420505354,1776179445646,-500.0,0.00011232,2]
[420505355,1776179445656,-500.0,0.00011232,2]
[420505356,1776179445673,-467.21247561,0.00011232,2]
[420505357,1776179445683,-500.0,0.00011232,2]
[420505358,1776179445694,-500.0,0.00011232,2]
[420505359,1776179445710,-500.0,0.00011232,2]
[420505360,1776179445719,-500.0,0.00011232,2]
[420505361,1776179445730,-500.0,0.00011232,2]
[420505363,1776179445747,-500.0,0.00011232,2]
[420505365,1776179445762,-500.0,0.00011232,2]
[420505367,1776179445777,-500.0,0.00011232,2]
[420505368,1776179445798,-500.0,0.00011232,2]
[420505371,1776179445813,-500.0,0.00011232,2]
[420505373,1776179445826,-500.0,0.00011232,2]
[420505375,1776179445845,-500.0,0.00011232,2]
[420505376,1776179445858,-828.39,0.00011232,2]
[420505377,1776179445878,-500.0,0.00011232,2]
[420505378,1776179445892,-500.0,0.00011232,2]
[420505379,1776179445907,-500.0,0.00011232,2]
[420505380,1776179445924,-500.0,0.00011232,2]
[420505381,1776179445940,-500.0,0.00011232,2]
[420505382,1776179445962,-433.08019989,0.00011232,2]
[420505383,1776179445976,-500.0,0.00011232,2]
[420505384,1776179445988,-500.0,0.00011232,2]
[420505385,1776179446010,-624.4192331,0.00011232,2]
[420505386,1776179446024,-500.0,0.00011232,2]
[420505387,1776179446040,-1374.1553,0.00011232,2]
[420505389,1776179446053,-500.0,0.00011232,2]
[420505391,1776179446069,-500.0,0.00011232,2]
[420505392,1776179446086,-398.95364902,0.00011232,2]
[420505393,1776179446107,-563.4,0.00011232,2]
[420505394,1776179446122,-500.0,0.00011232,2]
[420505395,1776179446149,-500.0,0.00011232,2]
[420505396,1776179446166,-511.18,0.00011232,2]
[420505397,1776179446192,-500.0,0.00011232,2]
[420505398,1776179446211,-500.0,0.00011232,2]
[420505399,1776179446239,-276.42554979,0.00011232,2]
[420505400,1776179446259,-500.0,0.00011232,2]
[420505401,1776179446273,-500.0,0.00011232,2]
[420505402,1776179446286,-500.0,0.00011232,2]
[420505403,1776179446310,-500.0,0.00011232,2]
[420505404,1776179446323,-500.0,0.00011232,2]
[420505405,1776179446344,-638.86,0.00011232,2]
[420505406,1776179446357,-500.0,0.00011232,2]
[420505408,1776179446370,-500.0,0.00011232,2]
[420505409,1776179446391,-500.0,0.00011232,2]
[420505410,1776179446407,-294.02139998,0.00011232,2]
[420505411,1776179446429,-1000.0,0.00011232,2]
[420505412,1776179446444,-500.0,0.00011232,2]
[420505413,1776179446459,-500.0,0.00011232,2]
[420505414,1776179446481,-500.0,0.00011232,2]
[420505415,1776179446498,-500.0,0.00011232,2]
[420505416,1776179446514,-500.0,0.00011232,2]
[420505417,1776179446543,-500.0,0.00011232,2]
[420505418,1776179446559,-764.99,0.00011232,2]
[420505419,1776179446583,-500.0,0.00011232,2]
[420505420,1776179446594,-500.0,0.00011232,2]
[420505422,1776179446623,-500.0,0.00011232,2]
[420505425,1776179446638,-9753.8,0.00011232,2]
[420505426,1776179446667,-508.54,0.00011232,2]
[420505427,1776179446682,-500.0,0.00011232,2]
[420505428,1776179446715,-500.0,0.00011232,2]
[420505429,1776179446734,-10085.94,0.00011232,2]
[420505430,1776179446768,-500.0,0.00011232,2]
[420505431,1776179446786,-500.0,0.00011232,2]
[420505432,1776179446801,-500.0,0.00011232,2]
[420505433,1776179446822,-500.0,0.00011232,2]
[420505434,1776179446843,-500.0,0.00011232,2]
[420505435,1776179446861,-500.0,0.00011232,2]
[420505436,1776179446884,-500.0,0.00011232,2]
[420505437,1776179446900,-568.57045903,0.00011232,2]
[420505438,1776179446916,-500.0,0.00011232,2]
[420505439,1776179446932,-615.19,0.00011232,2]
[420505440,1776179446947,-500.0,0.00011232,2]
[420505441,1776179446968,-500.0,0.00011232,2]
[420505442,1776179446983,-500.0,0.00011232,2]
[420505443,1776179447004,-500.74172439,0.00011232,2]
[420505446,1776179447020,-580.29,0.00011232,2]
[420505448,1776179447040,-500.0,0.00011232,2]
[420505450,1776179447055,-7016.98,0.00011232,2]
[420505451,1776179447068,-500.0,0.00011232,2]
[420505452,1776179447082,-500.0,0.00011232,2]
[420505453,1776179447096,-500.0,0.00011232,2]
[420505454,1776179447112,-7599.2,0.00011232,2]
[420505455,1776179447124,-500.0,0.00011232,2]
[420505457,1776179447135,-500.0,0.00011232,2]
[420505458,1776179447149,-500.0,0.00011232,2]
[420505459,1776179447167,-500.0,0.00011232,2]
[420505460,1776179447179,-500.0,0.00011232,2]
[420505461,1776179447199,-500.0,0.00011232,2]
[420505462,1776179447211,-8795.6,0.00011232,2]
[420505463,1776179447223,-500.0,0.00011232,2]
[420505464,1776179447246,-500.0,0.00011232,2]
[420505465,1776179447258,-500.0,0.00011232,2]
[420505466,1776179447271,-500.0,0.00011232,2]
[420505467,1776179447286,-586.05,0.00011232,2]
[420505468,1776179447298,-547.63,0.00011232,2]
[420505469,1776179447309,-235.35789369,0.00011232,2]
[420505470,1776179447326,-30590.69,0.00011232,2]
[420505471,1776179447338,-6548.51,0.00011232,2]
[420505472,1776179447350,-500.0,0.00011232,2]
[420505473,1776179447366,-997.86,0.00011232,2]
[420505474,1776179447378,-11530.4,0.00011232,2]
[420505475,1776179447392,-499.0,0.00011232,2]
[420505476,1776179447407,-500.0,0.00011232,2]
[420505477,1776179447421,-300.6569066,0.00011232,2]
[420505478,1776179447437,-15520.86,0.00011232,2]
[420505479,1776179447449,-500.0,0.00011232,2]
[420505480,1776179447464,-22200.85,0.00011232,2]
[420505481,1776179447479,-15695.9,0.00011232,2]
[420505482,1776179447491,-500.0,0.00011232,2]
[420505483,1776179447511,-500.0,0.00011232,2]
[420505484,1776179447525,-500.0,0.00011232,2]
[420505485,1776179447544,-500.0,0.00011232,2]
[420505486,1776179447563,-500.0,0.00011232,2]
[420505487,1776179447579,-186.57,0.00011232,2]
[420505488,1776179447602,-500.0,0.00011232,2]
[420505489,1776179447617,-500.0,0.00011232,2]
[420505490,1776179447638,-500.0,0.00011232,2]
[420505491,1776179447650,-10863.91,0.00011232,2]
[420505492,1776179447664,-500.0,0.00011232,2]
[420505493,1776179447682,-9230.13,0.00011232,2]
[420505494,1776179447693,-5089.42,0.00011232,2]
[420505495,1776179447715,-500.0,0.00011232,2]
[420505496,1776179447727,-500.0,0.00011232,2]
[420505497,1776179447741,-500.0,0.00011232,2]
[420505498,1776179447764,-500.0,0.00011232,2]
[420505499,1776179447774,-500.0,0.00011232,2]
[420505500,1776179447795,-500.0,0.00011232,2]
[420505501,1776179447813,-726.61,0.00011232,2]
[420505502,1776179447835,-599.60298507,0.00011268,2]
[420505503,1776179447857,-151.0,0.000113,2]
[420505504,1776179447879,-151.0,0.000113,2]
[420505505,1776179447892,-151.0,0.000113,2]
[420505506,1776179447908,-621.78829552,0.00011323,2]
[420505507,1776179447923,-644.79446246,0.00011378,2]
[420505508,1776179447937,-151.0,0.000114,2]
[420505509,1776179447953,-151.0,0.000114,2]
[420505510,1776179448229,-151.0,0.000114,2]
[420505511,1776179448264,-151.0,0.000114,2]
[420505512,1776179448278,-668.65185757,0.00011433,2]
[420505513,1776179448301,-693.3919763,0.00011488,2]
[420505514,1776179448311,-151.0,0.000115,2]
[420505515,1776179448344,-151.0,0.000115,2]
[420505516,1776179448358,-151.0,0.000115,2]
[420505517,1776179448375,-151.0,0.000115,2]
[420505518,1776179448393,-500.0,0.00011506,2]
[420505519,1776179448403,-500.0,0.00011506,2]
[420505520,1776179448437,-500.0,0.00011506,2]
[420505521,1776179448447,-164.09,0.00011506,2]
[420505522,1776179448474,-500.0,0.00011506,2]
[420505523,1776179448485,-500.0,0.00011506,2]
[420505524,1776179448495,-500.0,0.00011506,2]
[420505525,1776179448517,-500.0,0.00011506,2]
[420505526,1776179448536,-500.0,0.00011506,2]
[420505527,1776179448546,-500.0,0.00011506,2]
[420505528,1776179448557,-500.0,0.00011506,2]
[420505529,1776179448578,-500.0,0.00011506,2]
[420505530,1776179448588,-828.39,0.00011506,2]
[420505531,1776179448605,-500.0,0.00011506,2]
[420505532,1776179448617,-500.0,0.00011506,2]
[420505533,1776179448627,-500.0,0.00011506,2]
[420505534,1776179448642,-500.0,0.00011506,2]
[420505535,1776179448655,-500.0,0.00011506,2]
[420505536,1776179448670,-500.0,0.00011506,2]
[420505537,1776179448685,-500.0,0.00011506,2]
[420505538,1776179448698,-1374.1553,0.00011506,2]
[420505539,1776179448718,-500.0,0.00011506,2]
[420505540,1776179448729,-500.0,0.00011506,2]
[420505541,1776179448742,-563.4,0.00011506,2]
[420505542,1776179448757,-500.0,0.00011506,2]
[420505543,1776179448767,-500.0,0.00011506,2]
[420505544,1776179448779,-511.18,0.00011506,2]
[420505545,1776179448789,-500.0,0.00011506,2]
[420505546,1776179448805,-500.0,0.00011506,2]
[420505547,1776179448814,-500.0,0.00011506,2]
[420505548,1776179448830,-500.0,0.00011506,2]
[420505549,1776179448842,-500.0,0.00011506,2]
[420505550,1776179448857,-500.0,0.00011506,2]
[420505551,1776179448869,-539.91863447,0.00011506,2]
[420505552,1776179448878,-500.0,0.00011506,2]
[420505553,1776179448893,-238.31813556,0.00011506,2]
[420505554,1776179448904,-500.0,0.00011506,2]
[420505555,1776179448918,-500.0,0.00011506,2]
[420505556,1776179448929,-500.0,0.00011506,2]
[420505557,1776179448946,-500.0,0.00011506,2]
[420505558,1776179448967,-500.0,0.00011506,2]
[420505560,1776179448998,-385.51567942,0.00011506,2]
[420505562,1776179449009,-764.99,0.00011506,2]
[420505563,1776179449029,-500.0,0.00011506,2]
[420505564,1776179449041,-500.0,0.00011506,2]
[420505566,1776179449053,-417.64702283,0.00011506,2]
[420505567,1776179449071,-9753.8,0.00011506,2]
[420505569,1776179449082,-500.0,0.00011506,2]
[420505571,1776179449101,-10085.94,0.00011506,2]
[420505572,1776179449114,-500.0,0.00011506,2]
[420505574,1776179449124,-500.0,0.00011506,2]
[420505575,1776179449134,-500.0,0.00011506,2]
[420505576,1776179449148,-500.0,0.00011506,2]
[420505577,1776179449158,-500.0,0.00011506,2]
[420505578,1776179449168,-500.0,0.00011506,2]
[420505579,1776179449177,-500.0,0.00011506,2]
[420505580,1776179449197,-500.0,0.00011506,2]
[420505581,1776179449207,-500.0,0.00011506,2]
[420505582,1776179449216,-615.19,0.00011506,2]
[420505583,1776179449226,-500.0,0.00011506,2]
[420505584,1776179449242,-500.0,0.00011506,2]
[420505585,1776179449251,-580.29,0.00011506,2]
[420505586,1776179449260,-500.0,0.00011506,2]
[420505587,1776179449277,-7016.98,0.00011506,2]
[420505588,1776179449296,-500.0,0.00011506,2]
[420505589,1776179449306,-500.0,0.00011506,2]
[420505590,1776179449326,-500.0,0.00011506,2]
[420505591,1776179449340,-7599.2,0.00011506,2]
[420505592,1776179449350,-500.0,0.00011506,2]
[420505593,1776179449360,-500.0,0.00011506,2]
[420505594,1776179449384,-500.0,0.00011506,2]
[420505595,1776179449394,-500.0,0.00011506,2]
[420505596,1776179449414,-500.0,0.00011506,2]
[420505597,1776179449424,-8795.6,0.00011506,2]
[420505598,1776179449434,-500.0,0.00011506,2]
[420505599,1776179449445,-500.0,0.00011506,2]
[420505600,1776179449465,-500.0,0.00011506,2]
[420505601,1776179449476,-500.0,0.00011506,2]
[420505602,1776179449485,-586.05,0.00011506,2]
[420505603,1776179449506,-547.63,0.00011506,2]
[420505604,1776179449515,-30590.69,0.00011506,2]
[420505605,1776179449532,-6548.51,0.00011506,2]
[420505606,1776179449545,-500.0,0.00011506,2]
[420505607,1776179449555,-997.86,0.00011506,2]
[420505608,1776179449566,-11530.4,0.00011506,2]
[420505609,1776179449586,-500.0,0.00011506,2]
[420505610,1776179449599,-15520.86,0.00011506,2]
[420505611,1776179449609,-500.0,0.00011506,2]
[420505612,1776179449634,-22200.85,0.00011506,2]
[420505613,1776179449659,-15695.9,0.00011506,2]
[420505614,1776179449673,-500.0,0.00011506,2]
[420505615,1776179449683,-500.0,0.00011506,2]
[420505616,1776179449710,-500.0,0.00011506,2]
[420505617,1776179449722,-500.0,0.00011506,2]
[420505618,1776179449759,-500.0,0.00011506,2]
[420505619,1776179449769,-500.0,0.00011506,2]
[420505620,1776179449790,-620.68,0.00011506,2]
[420505621,1776179449802,-500.0,0.00011506,2]
[420505622,1776179449811,-10863.91,0.00011506,2]
[420505623,1776179449828,-500.0,0.00011506,2]
[420505624,1776179449838,-9230.13,0.00011506,2]
[420505625,1776179449848,-5089.42,0.00011506,2]
[420505626,1776179449858,-500.0,0.00011506,2]
[420505627,1776179449874,-500.0,0.00011506,2]
[420505628,1776179449887,-500.0,0.00011506,2]
[420505629,1776179449896,-500.0,0.00011506,2]
[420505630,1776179449910,-500.0,0.00011506,2]
[420505631,1776179449925,-500.0,0.00011506,2]
[420505632,1776179449935,-726.61,0.00011506,2]
[420505633,1776179449946,-500.0,0.00011521,2]
[420505634,1776179449963,-500.0,0.00011521,2]
[420505635,1776179449972,-504.50592653,0.00011521,2]
[420505636,1776179449983,-500.0,0.00011521,2]
[420505637,1776179450010,-500.0,0.00011521,2]
[420505638,1776179450023,-500.0,0.00011521,2]
[420505639,1776179450033,-501.0828228,0.00011521,2]
[420505640,1776179450054,-500.0,0.00011521,2]
[420505641,1776179450066,-719.04747942,0.00011543,2]
[420505642,1776179450076,-1495.184649,0.00011551,2]
[420505643,1776179450094,-236.267503,0.00011569,2]
[420505644,1776179450125,-556.53656846,0.00011598,2]
[420505645,1776179450136,-16221.2095313,0.00011598,2]
[420505646,1776179450150,-151.0,0.000116,2]
[420505647,1776179450171,-578.20924308,0.00011651,2]
[420505648,1776179450183,-2230.315306,0.00011651,2]
[420505649,1776179450207,-151.0,0.000117,2]
[420505650,1776179450217,-500.0,0.0001178,2]
[420505651,1776179450228,-500.0,0.0001178,2]
[420505652,1776179450248,-500.0,0.0001178,2]
[420505653,1776179450258,-500.0,0.0001178,2]
[420505654,1776179450268,-500.0,0.0001178,2]
[420505655,1776179450281,-500.0,0.0001178,2]
[420505656,1776179450299,-563.09,0.0001178,2]
[420505657,1776179450309,-500.0,0.0001178,2]
[420505658,1776179450320,-546.12,0.0001178,2]
[420505659,1776179450339,-500.0,0.0001178,2]
[420505660,1776179450353,-500.0,0.0001178,2]
[420505661,1776179450365,-828.39,0.0001178,2]
[420505662,1776179450375,-503.61992467,0.0001178,2]
[420505663,1776179450386,-500.0,0.0001178,2]
[420505664,1776179450404,-500.0,0.0001178,2]